Cogmind - Beta 16.1 @@@ ROGUE MODE // 2026.04.17 @ 20:06:25 Player: dorusv Result: Core destroyed Performance ------------- Evolutions (2) 1000 Regions Visited (8) 1600 Robots Destroyed (41) 205 Value Destroyed (698) 698 Prototype IDs (1) 20 Alien Tech Used (0) 0 Bonus (0) 0 TOTAL SCORE: 3523 Bonus ------- None Cogmind --------- Core Integrity 0/550 Matter 300/300 Energy 100/100 System Corruption 4% Temperature Cool (0) Movement Core (50) Location -8/Storage Parts ------- > --- POWER (2) -------- (None) > --- PROPULSION (4) --- (None) > --- UTILITY (3) ------ (None) > --- WEAPON (2) ------- (None) > --- INVENTORY (5) ---- Heavy Ion Engine Pulse Rifle Peak State ------------ > --- POWER ------------ Light Ion Engine Micro Nuclear Core > --- PROPULSION ------- Flight Unit Flight Unit > --- UTILITY ---------- Improved Terrain Scanner Seismic Detector Hacking Suite > --- WEAPON ----------- Medium Laser Particle Gun > --- INVENTORY -------- Flight Unit Flight Unit Flight Unit Hardened Light Armor Plating [Rating: 17] Favorites ----------- Power Light Ion Engine Engine Light Ion Engine Power Core Micro Nuclear Core Propulsion Light Treads Treads Light Treads Leg Aluminum Leg Flight Unit Flight Unit Utility Improved Terrain Scanner Device Improved Terrain Scanner Hackware Hacking Suite Protection Hardened Light Armor Plating Weapon Particle Gun Energy Gun Particle Gun Ballistic Gun Light Assault Rifle Build | -11 -10 -10 -9 -9 -9 -8 -8 -8 ------- Run | Yrd Mat Min Mat Min Exi Min Mat Sto Slots Evolved 4 | . . . 2 . . . 2 . Power 1 | . . . 1 . . . . . Propulsion 2 | . . . . . . . 2 . Utility 1 | . . . 1 . . . . . Weapon . | . . . . . . . . . Parts Attached 46 | 7 5 . 4 14 1 11 3 1 Power 14 | 1 1 . 1 7 . 3 . 1 Engine 13 | 1 1 . 1 6 . 3 . 1 Core 1 | . . . . 1 . . . . Reactor . | . . . . . . . . . Propulsion 13 | 2 . . . 4 1 4 2 . Treads 2 | 2 . . . . . . . . Leg 2 | . . . . 2 . . . . Wheel . | . . . . . . . . . Hover . | . . . . . . . . . Flight 9 | . . . . 2 1 4 2 . Utility 9 | 2 2 . 2 1 . 1 1 . Device 7 | 2 2 . 1 1 . 1 . . Storage . | . . . . . . . . . Processor . | . . . . . . . . . Hackware 1 | . . . 1 . . . . . Protection 1 | . . . . . . . 1 . Artifact . | . . . . . . . . . Weapon 10 | 2 2 . 1 2 . 3 . . Energy Gun 8 | 2 2 . 1 2 . 1 . . Energy Cannon . | . . . . . . . . . Ballistic Gun 2 | . . . . . . 2 . . Ballistic Cannon . | . . . . . . . . . Launcher . | . . . . . . . . . Special Weapon . | . . . . . . . . . Impact Weapon . | . . . . . . . . . Slashing Weapon . | . . . . . . . . . Piercing Weapon . | . . . . . . . . . Special Melee Weapon . | . . . . . . . . . Unidentified Prototypes 1 | . . . . . . . . 1 Corrupted Parts 1 | . . . . 1 . . . . System Corruption 4 | . . . . 4 . . . . Parts Lost 21 | . 2 . 2 8 . 6 . 3 Power 5 | . . . 1 2 . 1 . 1 Propulsion 9 | . . . . 4 . 3 . 2 Utility 4 | . 2 . . . . 2 . . Weapon 3 | . . . 1 2 . . . . Highest Loss Streak 3 | . 1 . 2 3 . 2 . 3 To Critical Strikes . | . . . . . . . . . Average Backups 4 | 1 3 5 4 4 5 4 1 1 Power . | . 1 1 . . . . . . Propulsion 1 | . . . . 1 3 1 . . Utility . | . . . . 1 1 1 . . Weapon 1 | . 2 4 3 1 . . . 1 Tool/Special . | . . . . . . . . . Unused Backups 1 | . . . . 1 . . . . Power . | . . . . . . . . . Propulsion . | . . . . . . . . . Utility . | . . . . . . . . . Weapon 1 | . . . . 1 . . . . Tool/Special . | . . . . . . . . . Average Slot Usage (%) 85 | . 98 100 93 95 88 54 54 18 Engine 14 | . 14 14 19 18 11 5 15 5 Core 3 | . . . . 1 11 9 . . Treads 8 | . 28 28 22 2 . . . . Leg 4 | . . . . 11 . . . . Flight 7 | . . . . 5 17 20 24 8 Device 19 | . 26 28 21 22 22 4 . . Hackware 6 | . . . 9 11 11 3 . . Energy Gun 19 | . 27 28 20 21 15 7 . . Peak Build Rating 17 | 9 13 11 15 16 17 15 11 10 Average Rating 12 | 6 10 11 14 14 15 9 7 2 On Entrance 9 | . 9 11 11 14 16 15 3 8 Avg Prop Armor Cover (%) . | . . . . . . . . . Naked Turns 138 | . . . . . . . . 138 Heaviest Build 16 | 10 13 11 14 16 16 13 12 12 Greatest Support 40 | 40 40 40 40 40 8 8 12 12 Greatest Overweight (x) 4 | 1 . . . 4 3 3 . 2 Average Overweight (x) . | . . . . . 1 . . . Largest Inventory Capacity 5 | 5 5 5 5 5 5 5 5 5 Average Capacity 5 | 5 5 5 5 5 5 5 5 5 Most Carried 5 | 2 5 5 5 5 5 5 4 2 Average Carried 4 | 1 3 5 4 4 4 4 1 1 Final Capacity 5 | 5 5 5 5 5 5 5 5 5 Final Carried 5 | 2 5 5 4 5 5 5 1 2 Scrap Suit Usage (%) 1 | . . . . . . 1 . . Class Distribution -------------------- 53% | Scavenger-Mutant 46% | Mutant Dominant Class ---------------- Mutant | -10/Materials Mutant | -10/Mines Mutant | -9/Materials Scavenger-Mutant | -9/Mines Scavenger-Mutant | -9/Exiles Mutant | -8/Mines Mutant | -8/Materials Mutant | -8/Storage Resources | -11 -10 -10 -9 -9 -9 -8 -8 -8 ----------- Run | Yrd Mat Min Mat Min Exi Min Mat Sto Matter Collected 741 | 270 30 24 25 155 . 155 . 82 Remotely . | . . . . . . . . . Salvage Created 1028 | 156 185 144 63 401 . 79 . . Parts 85 | 11 14 10 3 38 . 9 . . Haulers Intercepted . | . . . . . . . . . Recyclers Shooed 1 | . . . 1 . . . . . Parts Field Recycled . | . . . . . . . . . Retrieved Matter . | . . . . . . . . . Parts Self-Destructed . | . . . . . . . . . Prevented . | . . . . . . . . . Parts Restored . | . . . . . . . . . Kills | -11 -10 -10 -9 -9 -9 -8 -8 -8 ------- Run | Yrd Mat Min Mat Min Exi Min Mat Sto Combat Hostiles Destroyed 30 | . 4 4 1 15 . 6 . . Guns 30 | . 4 4 1 15 . 6 . . Classes Destroyed 8 | 2 2 1 2 1 . . . . Worker 3 | . . . . 3 . . . . Builder 1 | . 1 . . . . . . . Tunneler 4 | 3 . . . 1 . . . . Recycler 2 | 1 . 1 . . . . . . Mechanic 1 | . . . 1 . . . . . Swarmer 19 | . . 3 . 10 . 6 . . Grunt 10 | . 4 1 . 5 . . . . Sentry 1 | . . . 1 . . . . . Best Kill Streak 4 | 3 3 3 2 4 . 3 . . Combat Bots Only 4 | . 2 3 1 4 . 3 . . Max Kills in Single Turn 2 | 1 1 2 1 1 . 1 . . Gunslinging 1 | . . 1 . . . . . . Exploded . | . . . . . . . . . Melee . | . . . . . . . . . Uniques/NPCs Destroyed . | . . . . . . . . . Combat | -11 -10 -10 -9 -9 -9 -8 -8 -8 -------- Run | Yrd Mat Min Mat Min Exi Min Mat Sto Hostile Shots Fired 278 | . 18 13 44 76 . 54 . 73 Missed 77 | . 3 1 18 13 . 13 . 29 Hits 201 | . 15 12 26 63 . 41 . 44 Melee 5 | . . . . . . 5 . . Projectile 196 | . 15 12 26 63 . 36 . 44 Critical Strikes 10 | . 1 . 1 1 . 4 . 3 Damage Taken 2591 | . 189 105 376 677 . 456 . 788 Core 962 | . 33 14 84 137 . 142 . 552 Absorbed by Shields 43 | . . . . . . . . 43 Core Remaining (%) 63 | 100 . 81 . . . 9 . . Volleys Fired 106 | 11 14 12 2 39 . 22 . 6 Largest 2 | 2 2 2 2 2 . 2 . 1 Hottest 130 | 90 130 130 130 130 . 70 . 20 Shots Fired 165 | 22 28 24 3 57 . 25 . 6 Gun 165 | 22 28 24 3 57 . 25 . 6 Cannon . | . . . . . . . . . Launcher . | . . . . . . . . . Special . | . . . . . . . . . Kinetic 10 | . . . . . . 4 . 6 Thermal 155 | 22 28 24 3 57 . 21 . . Explosive . | . . . . . . . . . Electromagnetic . | . . . . . . . . . Robot Hit Streak 12 | 10 12 8 2 4 . 3 . 4 Robot Miss Streak 4 | 1 1 1 1 3 . 4 . 1 Penetration Max . | . . . . . . . . . Secondary Targets 4 | . . 1 . 3 . . . . Max Gunslinging Chain 1 | . . 1 . 1 . . . . Shots Hit Robots 110 | 17 21 18 2 34 . 13 . 5 Core Hits 60 | 5 10 7 2 22 . 7 . 7 Critical Kills . | . . . . . . . . . Critical Parts Destroyed . | . . . . . . . . . Critical Strikes 5 | . 1 . 1 2 . 1 . . Burn 5 | . 1 . 1 2 . 1 . . Melee Attacks . | . . . . . . . . . Impact . | . . . . . . . . . Slashing . | . . . . . . . . . Piercing . | . . . . . . . . . Sneak Attacks . | . . . . . . . . . Combat Hostiles . | . . . . . . . . . Follow-up Attacks . | . . . . . . . . . Damage Inflicted 1675 | 197 287 276 38 582 . 189 . 106 Guns 1576 | 197 285 276 28 568 . 186 . 36 Cannons . | . . . . . . . . . Explosions . | . . . . . . . . . Melee . | . . . . . . . . . Ramming 99 | . 2 . 10 14 . 3 . 70 Kinetic 48 | . . . . . . 12 . 36 Thermal 1528 | 197 285 276 28 568 . 174 . . Explosive . | . . . . . . . . . Electromagnetic . | . . . . . . . . . Impact . | . . . . . . . . . Slashing . | . . . . . . . . . Piercing . | . . . . . . . . . Highest Corruption 8 | . 1 1 . 4 4 8 . 4 Average Corruption 3 | . 1 1 . 4 4 4 . 2 Corruption Purged . | . . . . . . . . . Corruption Blocked . | . . . . . . . . . Effects 33 | . 5 . . 4 14 10 . . Message Errors 11 | . 1 . . 2 7 1 . . Matter Fused 7 | . 2 . . . 2 3 . . Heat Flow Errors 4 | . . . . 1 1 2 . . Energy Discharges 1 | . . . . . 1 . . . Parts Rejected 1 | . . . . . . 1 . . Parts Fused 1 | . 1 . . . . . . . Data Loss (minor) 3 | . . . . . 1 2 . . Data Loss (major) 2 | . . . . 1 1 . . . Misfires 1 | . . . . . . 1 . . Alerts 2 | . 1 . . . 1 . . . Overload Shots . | . . . . . . . . . Overflow Damage . | . . . . . . . . . Projectiles . | . . . . . . . . . Explosions . | . . . . . . . . . Melee . | . . . . . . . . . Knockbacks . | . . . . . . . . . Impact . | . . . . . . . . . Kinetic . | . . . . . . . . . Secondary . | . . . . . . . . . Self-Inflicted Damage 31 | . . . . . . 1 . 30 Shots . | . . . . . . . . . Rammed 29 | . 2 . 1 . . 2 . 24 Targets Rammed 34 | . 2 . 2 4 . 2 . 24 Kicked 4 | . . . . 4 . . . . Crushed 1 | . . . 1 . . . . . Highest Temperature 416 | 162 345 195 112 416 92 271 . 50 Average Temperature 119 | 59 155 85 59 155 48 100 . 19 Received Heat Transfer 942 | . 120 18 132 249 . 18 . 405 Effects 5 | . . . . 5 . . . . Shutdowns 2 | . . . . 2 . . . . Energy Bleed 1 | . . . . 1 . . . . Short Circuit 1 | . . . . 1 . . . . Damage (minor) 1 | . . . . 1 . . . . Siege Activations . | . . . . . . . . . Martial Activations . | . . . . . . . . . Shielding Activations . | . . . . . . . . . Robots Disrupted . | . . . . . . . . . Combat Hostiles . | . . . . . . . . . Robots Corrupted . | . . . . . . . . . Combat Hostiles . | . . . . . . . . . Parts Fried . | . . . . . . . . . Impact Corruptions . | . . . . . . . . . Robots Melted . | . . . . . . . . . Combat Hostiles . | . . . . . . . . . Parts Melted 7 | . . . 1 4 . 2 . . Heat Transferred 4150 | 497 804 666 148 1517 . 518 . . Parts Sabotaged . | . . . . . . . . . Parts Stolen . | . . . . . . . . . Parts Stripped . | . . . . . . . . . Power Chain Reactions . | . . . . . . . . . Alert | -11 -10 -10 -9 -9 -9 -8 -8 -8 ------- Run | Yrd Mat Min Mat Min Exi Min Mat Sto Maximum Alert Level . | . . . . . . . . . Low Security (%) 100 | 100 100 100 100 100 . 100 100 100 Level 1 . | . . . . . . . . . Level 2 . | . . . . . . . . . Level 3 . | . . . . . . . . . Level 4 . | . . . . . . . . . Level 5 . | . . . . . . . . . High Security . | . . . . . . . . . Max Security . | . . . . . . . . . Peak Influence 110 | 5 45 75 30 104 . 50 1 110 Initial 17 | . . . 17 . . . 1 . Average 18 | . 6 27 7 24 . 20 . 25 Influence Increases 1028 | 20 106 105 47 385 . 215 . 150 Destroy 0b10 Robot/C 600 | . 80 80 20 300 . 120 . . Destroy 0b10 Robot/NC 55 | 20 5 5 5 20 . . . . Destroy Leader 120 | . 20 20 10 50 . 20 . . Successful Hack 12 | . . . 12 . . . . . Disable Machine 15 | . . . . 15 . . . . Destroy Structure 1 | . 1 . . . . . . . Lose Combat Pursuer 225 | . . . . . . 75 . 150 Influence Decreases 918 | 20 106 60 92 385 . 211 4 40 Entered New Map 31 | . . . 28 . . . 3 . Time Decay 742 | 20 96 60 49 305 . 171 1 40 Lost Part 145 | . 10 . 15 80 . 40 . . Squads Dispatched 4 | . 1 . 1 . . . . 2 Investigation 2 | . 1 . . . . . . 1 Extermination . | . . . . . . . . . Reinforcement 2 | . . . 1 . . . . 1 Assault . | . . . . . . . . . Garrison . | . . . . . . . . . Intercept . | . . . . . . . . . Searches Triggered . | . . . . . . . . . Construction Impeded . | . . . . . . . . . Haulers Reinforced . | . . . . . . . . . Active Scanning Responses . | . . . . . . . . . Cargo Convoy Interrupts . | . . . . . . . . . Stealth | -11 -10 -10 -9 -9 -9 -8 -8 -8 --------- Run | Yrd Mat Min Mat Min Exi Min Mat Sto Distress Signals 2 | . . . . . . . 1 1 Communications Jammed . | . . . . . . . . . Distress Signals . | . . . . . . . . . Times Spotted 80 | . 8 5 8 16 . 16 3 24 Peak Tracking Total 13 | . 2 1 5 4 . 6 3 13 Tactical Retreats 6 | . . . . . . 2 . 4 Traps | -11 -10 -10 -9 -9 -9 -8 -8 -8 ------- Run | Yrd Mat Min Mat Min Exi Min Mat Sto Traps Triggered 3 | . . . . 1 . . . 2 Indirectly . | . . . . . . . . . Trap Hack Attempts . | . . . . . . . . . Triggered . | . . . . . . . . . Disarmed . | . . . . . . . . . Reprogrammed . | . . . . . . . . . Reused . | . . . . . . . . . Traps Extracted . | . . . . . . . . . Installed . | . . . . . . . . . Triggered . | . . . . . . . . . Machines | -11 -10 -10 -9 -9 -9 -8 -8 -8 ---------- Run | Yrd Mat Min Mat Min Exi Min Mat Sto Machines Disabled 1 | . . . . 1 . . . . Max in Single Turn 1 | . . . . 1 . . . . Machines Repaired . | . . . . . . . . . Machines Dismantled . | . . . . . . . . . Machines Sabotaged . | . . . . . . . . . Overloaded Fab Kills . | . . . . . . . . . Hacking | -11 -10 -10 -9 -9 -9 -8 -8 -8 --------- Run | Yrd Mat Min Mat Min Exi Min Mat Sto Machines Accessed 10 | . 3 . 1 1 4 . . 1 Terminals 5 | . 3 . 1 . . . . 1 Fabricators . | . . . . . . . . . Repair Stations . | . . . . . . . . . Recycling Units . | . . . . . . . . . Scanalyzers . | . . . . . . . . . Garrison Access . | . . . . . . . . . Total Hacks 20 | . 9 . 2 1 4 . . 4 Successful 10 | . 2 . 2 1 4 . . 1 Failed 10 | . 7 . . . . . . 3 Catastrophic 2 | . . . . . . . . 2 Database Lockouts . | . . . . . . . . . Manual 7 | . 2 . 2 . . . . 3 Terminals 15 | . 9 . 2 . . . . 4 Fabricators . | . . . . . . . . . Repair Stations . | . . . . . . . . . Recycling Units . | . . . . . . . . . Scanalyzers . | . . . . . . . . . Garrison Access . | . . . . . . . . . Terminal Hacks 10 | . 2 . 2 1 4 . . 1 Record 4 | . . . . . 4 . . . Open Door 1 | . . . . 1 . . . . Branch Access Points 2 | . 1 . 1 . . . . . Zone Layout 3 | . 1 . 1 . . . . 1 Fabricator Hacks . | . . . . . . . . . Repair Station Hacks . | . . . . . . . . . Recycling Unit Hacks . | . . . . . . . . . Scanalyzer . | . . . . . . . . . Garrison Access Hacks . | . . . . . . . . . Unauthorized Hacks . | . . . . . . . . . Terminals . | . . . . . . . . . Fabricators . | . . . . . . . . . Repair Stations . | . . . . . . . . . Recycling Units . | . . . . . . . . . Scanalyzers . | . . . . . . . . . Garrison Access . | . . . . . . . . . Data Cores Recovered . | . . . . . . . . . Used . | . . . . . . . . . Hacking Detections 3 | . 2 . . . . . . 1 Full Trace Events 2 | . 1 . . . . . . 1 Feedback Events 1 | . 1 . . . . . . . Corruption 1 | . 1 . . . . . . . Feedback Blocked . | . . . . . . . . . Robot Schematics Acquired . | . . . . . . . . . Robots Built . | . . . . . . . . . Authchips . | . . . . . . . . . Time . | . . . . . . . . . Total Robot Build Rating . | . . . . . . . . . Part Schematics Acquired . | . . . . . . . . . Parts Built . | . . . . . . . . . Authchips . | . . . . . . . . . Time . | . . . . . . . . . Total Part Build Rating . | . . . . . . . . . Part Studies Acquired . | . . . . . . . . . Parts Repaired . | . . . . . . . . . Time . | . . . . . . . . . Parts Recycled . | . . . . . . . . . Recycled Matter . | . . . . . . . . . Retrieved Matter . | . . . . . . . . . Retrieved Components . | . . . . . . . . . Parts Scanalyzed . | . . . . . . . . . Part Schematics Acquired . | . . . . . . . . . Parts Damaged . | . . . . . . . . . Bothacking | -11 -10 -10 -9 -9 -9 -8 -8 -8 ------------ Run | Yrd Mat Min Mat Min Exi Min Mat Sto Used RIF Installer . | . . . . . . . . . Robots Hacked . | . . . . . . . . . Non-combat . | . . . . . . . . . Combat . | . . . . . . . . . Robot Hacks Applied . | . . . . . . . . . Relay Couplers Released . | . . . . . . . . . Fabnet Peak Effective % . | . . . . . . . . . Robots Rewired . | . . . . . . . . . Allies Hacked . | . . . . . . . . . Hacks Repelled . | . . . . . . . . . Allies | -11 -10 -10 -9 -9 -9 -8 -8 -8 -------- Run | Yrd Mat Min Mat Min Exi Min Mat Sto Total Allies . | . . . . . . . . . Largest Group . | . . . . . . . . . Highest-Rated Group . | . . . . . . . . . Highest-Rated Ally . | . . . . . . . . . Total Orders . | . . . . . . . . . Ally Attacks . | . . . . . . . . . Total Damage . | . . . . . . . . . Kills . | . . . . . . . . . Allies Corrupted . | . . . . . . . . . Allies Melted . | . . . . . . . . . Intel | -11 -10 -10 -9 -9 -9 -8 -8 -8 ------- Run | Yrd Mat Min Mat Min Exi Min Mat Sto Active Infowar (turns) 3367 | 108 663 201 201 1499 544 151 . . Terrain 3225 | 108 663 201 201 1499 544 9 . . Structural 282 | . . . 149 133 . . . . Seismic 2341 | 29 251 . . 1366 544 151 . . Robot Analysis Total . | . . . . . . . . . Derelict Logs Recovered 1 | . . . . 1 . . . . Drone Launches . | . . . . . . . . . Drone Recoveries . | . . . . . . . . . Exploration | -11 -10 -10 -9 -9 -9 -8 -8 -8 ------------- Run | Yrd Mat Min Mat Min Exi Min Mat Sto Turns Passed 3973 | 223 663 201 201 1499 544 425 23 194 Spaces Moved 2575 | 115 236 104 118 817 354 489 52 290 Core 221 | 6 . . . 8 . . . 207 Treads 656 | 109 236 104 118 89 . . . . Legs 404 | . . . . 404 . . . . Wheels . | . . . . . . . . . Hover . | . . . . . . . . . Flight 1294 | . . . . 316 354 489 52 83 Fastest Speed 34 | 50 160 160 160 117 117 37 34 34 Average Speed 117 | 155 160 160 160 135 153 60 34 46 Slowest Speed 280 | 160 160 160 160 280 280 280 34 200 Overloaded Moves . | . . . . . . . . . Propulsion Burnouts . | . . . . . . . . . Robots Hopped 7 | . . . . . . 5 . 2 Potential Cave-ins . | . . . . . . . . . Cave-ins Triggered . | . . . . . . . . . Exploration Rate (%) 37 | 4 34 41 18 85 62 60 6 31 Regions Visited 8 Branch Regions 5 Pre-discovered Areas 2 | . . . . 2 . . . . Known Exits Taken 2 | . 1 . 1 . . . . . Unknown Exits Taken 6 | 1 . 1 . 1 1 1 1 . Scrap Searched 3 | . . 1 . 1 . 1 . . Spaces Dug . | . . . . . . . . . Terrain Destroyed . | . . . . . . . . . Melee . | . . . . . . . . . Projectile . | . . . . . . . . . AOE . | . . . . . . . . . Terrain Rammed . | . . . . . . . . . Walls Destroyed . | . . . . . . . . . Machines Disabled . | . . . . . . . . . Actions | -11 -10 -10 -9 -9 -9 -8 -8 -8 --------- Run | Yrd Mat Min Mat Min Exi Min Mat Sto Total 3357 | 134 492 115 126 1149 355 586 57 343 Wait 555 | . 230 . . 256 . 57 . 12 Move 2554 | 114 235 103 117 816 353 479 51 286 Hop 6 | . . . . . . 4 . 2 Pick Up 12 | 2 3 . . 6 . 1 . . Fast Attach 30 | 7 4 . 2 9 . 7 . 1 Attach 14 | . . . 2 3 1 2 5 1 Detach 11 | . 1 . 1 1 1 4 1 2 Swap 10 | . 1 . . 5 . 4 . . Drop 16 | . 2 . . 10 . 4 . . Fire 106 | 11 14 12 2 39 . 22 . 6 Melee . | . . . . . . . . . Ram 25 | . . . . . . 2 . 23 Kick 4 | . . . . 4 . . . . Crush 4 | . 2 . 2 . . . . . Escape Stasis 10 | . . . . . . . . 10 Rewire . | . . . . . . . . . Trap . | . . . . . . . . . Miscellaneous . | . . . . . . . . . Route ------- -11/Scrapyard -10/Materials (discovered 2 exits: *Mat / *Min) -10/Mines -9/Materials -9/Mines -9/Exiles (discovered 2 exits: [*Min x2]) -8/Mines -8/Materials -8/Storage History --------- Turn | Location | Event 45 | -11/Scrapyard | Discovered new exit (range 13) 224 | -11/Scrapyard | Entered Materials 301 | -10/Materials | Build established: Mutant 731 | -10/Materials | Discovered new exit (range 13) 781 | -10/Materials | Identified exit to Mines 887 | -10/Materials | Entered Mines 927 | -10/Mines | Met a Derelict bent on vengeance 1064 | -10/Mines | Discovered new exit (range 16) 1088 | -10/Mines | Entered Materials 1088 | -9/Materials | Evolved 2 slots: Power x1, Utility x1 1152 | -9/Materials | Identified exit to Mines 1289 | -9/Materials | Entered Mines 1513 | -9/Mines | Lost 3 parts (1p2n) 1603 | -9/Mines | Learned location of Storage (-8) 1801 | -9/Mines | Build established: Scavenger-Mutant 1845 | -9/Mines | Joined a pair of Derelicts in attacking an 0b10 outpost 2281 | -9/Mines | Core integrity fell below 50% 2598 | -9/Mines | Met a Derelict who couldn't figure out how to use a Trap Extractor 2768 | -9/Mines | Deemed a non-threat by the Exiles lab entrance 2771 | -9/Mines | Discovered new exit (range 5) 2788 | -9/Mines | Entered Exiles 2788 | -9/Exiles | Found Exiles lab abandoned 2861 | -9/Exiles | Discovered new exit (range 15) 3314 | -9/Exiles | Discovered new exit (range 10) 3332 | -9/Exiles | Entered Mines 3561 | -8/Mines | Found a Scrap Suit stashed away for nefarious purposes 3562 | -8/Mines | Found Scrap Suit 3687 | -8/Mines | Core integrity fell below 20% 3750 | -8/Mines | Discovered new exit (range 15) 3757 | -8/Mines | Entered Materials 3757 | -8/Materials | Evolved 2 slots: Propulsion x2 3776 | -8/Materials | Discovered new exit (range 11) 3780 | -8/Materials | Entered Storage 3836 | -8/Storage | Released all parts (4) 3866 | -8/Storage | Lost 3 parts (1p2n) 3941 | -8/Storage | Core integrity fell below 50% 3963 | -8/Storage | Core integrity fell below 20% 3974 | -8/Storage | Core destroyed Last Messages --------------- 03868_ Connecting with Terminal... 03868_ ALERT: Suspicious activity at Terminal S010. Dispatching Investigation squad. 03880_ O-16 Technician: "IFF HANDSHAKE FAILED. SECURING TERMINAL." 03882_ K-01 Serf collects debris. 03885_ ALERT: Hostiles spotted, dispatching reinforcements to Terminal S014. 03887_ T-07 Excavator is excavating. 03887_ Slammed into T-07 Excavator. 03894_ Destabilizing: System corrupted (+2). 03902_ Slammed into A-02 Transporter. 03917_ W-25 Informer sends out distress signal. 03918_ Slammed into K-01 Serf. 03940_ Slammed into G-47 Trooper. 03942_ G-47 Trooper suffers critical hit (Burn). 03944_ Critical hit (Burn: +37). 03945_ Slammed into A-02 Transporter. 03948_ Critical hit (Burn: +37). 03966_ Slammed into G-47 Trooper. 03971_ Slammed into W-25 Informer. 03971_ Destabilizing: System corrupted (+2). 03972_ Slammed into W-25 Informer. Map ----- +----------------------------------------------------+ | | | | | | | | | | | | | | | | | | | ?????????????????????????????????????????????????? | | ?????????????????????????????????????????????????? | | ?????????????????????????????????????????????????? | | ?????????????????????????????????????????????????? | | ?????????????????????????????????????????????????? | | ?????????????????????????????????????????????????? | | ##???????????????????????????????????????????????? | | #???????????????????????????????????????????????? | | #???????????????????????????????????????????????? | | #???????????????????????????????????????????????? | | #???????????????????????##??????????????????????? | | #???????????????????????# ??????????????????????? | | #???????????????????????# ??????????????????????? | | #????????#######????????# "?????????????????????? | | #????????# #????????# "?????????????????????? | | ###???????# #?######## "?????????????????????? | | #???????#T #?#%g%%% @w"?????????????????????? | | #???????## ##?#g###### "?????????????????????? | | ###########+#####%# # "?????????????????????? | | %% % % / " # ?????????????????????? | | #+##+######## # T ####????????????????????? | | % #??# # " #???????????????????????? | | #?## ]! # #???????????????????????? | | #?#T | ### ###??????????????????????? | | #?## #?###"T??????????????????????? | | ##########??# #?# ??????????????????????? | | #???# #"T"# #?# ""??????????????????????? | | """ #???# #"""# #?# ""??????????????????????? | | """ #???# ##### #?# ""??????????????????????? | | """ #???# #??##+### ??????????????????????? | | %""" ##### #??# # ""??????????????????????? | | %""" + #??# # ""??????????????????????? | | # #??# #??????????????????????????? | | # #### #??????????????????????????? | | /%% % + #??????????????????????????? | | ############%#### #??????????????????????????? | | ##?????????# #??# #??????????????????????????? | | ?????[[#???####??# #??????????????????????????? | | ??" [ #?????????# #??????????????????????????? | | [#?????????######??????????????????????????? | | "??????????????????????????????????????????????? | +----------------------------------------------------+ Best States ------------- Heat Dissipation 39 Energy Generation 20 Energy Capacity 275 Matter Stores 300 Matter Capacity 300 Sight Range 16 Terrain Scan Range 16 Terrain Scan Density 10 Armor Coverage 150 Evasion (%) 63 Recoil Reduction 2 Offensive Hacking 10 Item Schematics ----------------- None Robot Schematics ------------------ None Fabricated ------------ Nothing Repaired ---------- Nothing Studied --------- None Alien Tech Used ----------------- None Achievements -------------- Live, Flee, And Rebuild Challenges ------------ None Game ------ Seed TitaniumRelayThruster Manual? 0 Play Time 00:25:04 Cumulative 18.4 hours Start 2026.04.17 @ 19:34:01 End 2026.04.17 @ 20:06:25 Sessions 1 Manual Loads 0 Difficulty Rogue Special Mode None Game No. 65 Rogue 62 Adventurer 3 Explorer 0 Win Type - Total 0 Types 0/0/0/0/0/0/0/0/0/0 Lore% 18 Gallery% 21 Achievement% 14 Wizard Run 0 Options --------- Layout 0 ASCII 0 Keyboard 1 Movement Arrows Keybinds 0 Fullscreen 1 Font 24/Terminus Map View 183x50 Zoom Use 0% Tactical HUD 1 Map Filters NONE Filters NONE Steam 1 RUN: b3b31cf0-e314-43fb-8f41-ed7aa2dbec55